bitfinex/quotes_BTCUSD_20240731
["timestamp","ask_amount","ask_price","bid_price","bid_amount"]
[1722445338481,0.47675531,66538.0,66537.0,0.028]
[1722445338687,1.21744468,66538.0,66537.0,0.028]
[1722445338894,1.32322794,66538.0,66537.0,0.028]
[1722445339932,1.32322794,66538.0,66537.0,0.014]
[1722445340190,1.32322794,66538.0,66537.0,0.022]
[1722445340364,1.02264794,66538.0,66537.0,0.022]
[1722445340765,1.32322794,66538.0,66537.0,0.022]
[1722445341169,1.32322794,66538.0,66537.0,0.008]
[1722445341367,1.32322794,66538.0,66537.0,0.017]
[1722445341985,0.150314,66528.0,66523.0,0.150322]
[1722445342371,0.0450936,66527.0,66525.0,0.150317]
[1722445342577,0.150307,66531.0,66529.0,0.07476412]
[1722445342787,0.14683,66538.0,66529.0,0.07476412]
[1722445342788,0.14483,66538.0,66529.0,0.07476412]
[1722445342994,0.150306,66531.0,66529.0,0.07476412]
[1722445343400,0.150304,66532.0,66529.0,0.07476412]
[1722445343585,0.150306,66531.0,66529.0,0.07476412]
[1722445344018,0.15031,66529.0,66525.0,0.150318]
[1722445344138,0.0450916,66528.0,66522.0,0.300649]
[1722445344371,0.1422,66527.0,66516.0,0.06]
[1722445344591,0.150334,66519.0,66514.0,0.150343]
[1722445344808,0.1422,66527.0,66516.0,0.150339]
[1722445345068,0.300644,66524.0,66518.0,0.150333]
[1722445345328,0.300644,66524.0,66516.0,0.300678]
[1722445345329,0.150324,66523.0,66522.0,0.004]
[1722445345601,0.450971,66523.0,66522.0,0.004]
[1722445345824,0.150326,66522.0,66518.0,0.150334]
[1722445346071,0.0235892,66525.0,66515.0,0.023]
[1722445346072,0.300657,66521.0,66515.0,0.023]
[1722445346344,0.300657,66521.0,66516.0,0.006]
[1722445346599,0.150334,66519.0,66516.0,0.006]
[1722445346860,0.30065,66523.0,66516.0,0.006]
[1722445346861,0.300657,66521.0,66516.0,0.006]
[1722445347091,0.814787,66517.0,66516.0,0.006]
[1722445347393,0.893287,66517.0,66516.0,0.006]
[1722445347625,0.1416,66517.0,66502.0,0.361842]
[1722445347852,0.300696,66513.0,66507.0,0.150359]
[1722445348149,0.300696,66513.0,66505.0,0.07476412]
[1722445348150,0.300697,66512.0,66505.0,0.07476412]
[1722445348403,0.150356,66509.0,66505.0,0.22512812]
[1722445348645,0.01416,66516.0,66505.0,0.22512812]
[1722445348646,0.300694,66513.0,66505.0,0.22512812]
[1722445348891,0.150355,66509.0,66505.0,0.07476412]
[1722445349328,0.150355,66509.0,66505.0,0.23512812]
[1722445349553,0.300697,66512.0,66505.0,0.08476412]
[1722445349749,0.0456431,66515.0,66505.0,0.01]
[1722445349750,0.15036,66507.0,66505.0,0.01]
[1722445349951,0.150355,66509.0,66505.0,0.01]
[1722445350151,0.150355,66509.0,66505.0,0.160364]
[1722445350623,0.150355,66509.0,66504.0,0.150366]
[1722445350878,0.150358,66508.0,66504.0,0.150366]
[1722445351173,0.0451065,66507.0,66505.0,0.013]
[1722445351364,0.150356,66509.0,66505.0,0.022]
[1722445351581,0.150357,66508.0,66505.0,0.009]
[1722445351787,0.150357,66508.0,66501.0,0.300744]
[1722445351788,0.150371,66502.0,66494.0,0.0622]
[1722445351999,0.150387,66495.0,66494.0,0.0622]
[1722445352202,0.0796,66496.0,66486.0,0.5337]
[1722445352405,0.0664,66495.0,66486.0,0.5337]
[1722445352608,0.150399,66490.0,66486.0,0.4715]
[1722445352834,0.0146,66494.0,66486.0,0.4715]
[1722445352835,0.451209,66488.0,66486.0,0.4715]
[1722445353078,0.0146,66494.0,66482.0,0.0622]
[1722445353375,0.150401,66489.0,66485.0,0.150408]
[1722445353614,0.0146,66494.0,66485.0,0.300816]
[1722445353812,0.150376,66500.0,66495.0,0.150386]
[1722445354022,0.0809,66508.0,66496.0,0.0606]
[1722445354152,0.245,66508.0,66494.0,0.014]
[1722445354359,0.150386,66496.0,66494.0,0.014]
[1722445354565,0.150379,66499.0,66495.0,0.150386]
[1722445354771,0.25391507,66508.0,66498.0,0.07476412]
[1722445354772,0.145,66508.0,66498.0,0.07476412]
[1722445354989,0.300705,66511.0,66501.0,0.0606]
[1722445355201,0.445895,66513.0,66502.0,0.0787]
[1722445355202,0.0015542,66510.0,66502.0,0.0787]
[1722445355406,0.0015542,66510.0,66507.0,0.150357]
[1722445355660,0.150354,66510.0,66502.0,0.0787]
[1722445355831,0.300692,66514.0,66502.0,0.0787]
[1722445355832,0.300702,66511.0,66505.0,0.150364]
[1722445356036,0.150354,66510.0,66506.0,0.150362]
[1722445356232,0.150354,66510.0,66497.0,0.300761]
[1722445356233,0.300717,66508.0,66497.0,0.300761]
[1722445356458,0.150373,66502.0,66498.0,0.023]
[1722445356802,0.150374,66501.0,66497.0,0.023]
[1722445356913,0.150379,66499.0,66496.0,0.023]
[1722445357345,0.0751856,66500.0,66490.0,0.300796]
[1722445357567,0.0015542,66503.0,66498.0,0.013]
[1722445357775,0.75189,66499.0,66498.0,0.013]
[1722445357968,0.150381,66498.0,66493.0,0.15039]
[1722445358212,0.0451137,66498.0,66496.0,0.014]
[1722445358398,0.0451137,66498.0,66496.0,0.028]
[1722445358399,0.1954947,66498.0,66496.0,0.028]
[1722445358598,0.1954947,66498.0,66496.0,0.014]
[1722445358805,0.300744,66502.0,66492.0,0.300785]
[1722445359008,0.1519292,66501.0,66497.0,0.150382]
[1722445359154,0.1519272,66501.0,66498.0,0.014]
[1722445359361,0.0015542,66501.0,66498.0,0.164378]
[1722445359565,0.0015542,66501.0,66498.0,0.014]
[1722445359777,0.232362,66506.0,66501.0,0.150372]
[1722445359976,0.2922715,66506.0,66501.0,0.150372]
[1722445360182,0.17396212,66505.0,66501.0,0.150372]
[1722445360392,0.02359712,66505.0,66499.0,0.37551512]
[1722445360591,0.0599075,66506.0,66502.0,0.150369]
[1722445360799,0.05109825,66505.0,66504.0,0.150366]
[1722445361003,0.05109825,66505.0,66502.0,0.0614]
[1722445361004,0.1478,66511.0,66497.0,0.300761]
[1722445361005,0.300721,66507.0,66497.0,0.300761]
[1722445361391,0.150373,66502.0,66501.0,0.008]
[1722445361622,0.451113,66502.0,66501.0,0.01]
[1722445361842,0.751855,66502.0,66501.0,0.01]
[1722445362063,0.751855,66502.0,66493.0,0.30078]
[1722445362064,0.150376,66500.0,66496.0,0.150384]
[1722445362283,0.3759275,66502.0,66498.0,0.15038]
[1722445362284,0.2255575,66502.0,66498.0,0.15038]
[1722445362518,0.150375,66501.0,66497.0,0.158382]
[1722445363139,0.150371,66502.0,66497.0,0.008]
[1722445363312,0.02459725,66501.0,66497.0,0.158382]
[1722445363547,0.150374,66501.0,66497.0,0.015]
[1722445363749,0.150374,66501.0,66497.0,0.165381]
[1722445363957,0.23157258,66501.0,66497.0,0.165381]
[1722445364127,0.08119858,66501.0,66497.0,0.329762]
[1722445364328,0.00099999,66504.0,66500.0,0.150375]
[1722445364550,0.15136699,66504.0,66501.0,0.013]
[1722445364891,0.300736,66504.0,66501.0,0.013]
[1722445365094,0.15137099,66503.0,66498.0,0.15038]
[1722445365273,0.15137099,66503.0,66502.0,0.01009145]
[1722445365274,0.24760387,66503.0,66502.0,0.01009145]
[1722445365479,0.300729,66506.0,66498.0,0.150379]
[1722445365480,0.150372,66502.0,66498.0,0.150379]
[1722445365727,0.15120837,66501.0,66497.0,0.150382]
[1722445365925,0.15120837,66501.0,66495.0,0.300771]
[1722445365926,0.150373,66501.0,66495.0,0.300771]
[1722445366331,0.04519444,66500.0,66497.0,0.150382]
[1722445366502,0.04519444,66500.0,66495.0,0.300771]
[1722445366503,0.0687918,66500.0,66498.0,0.150379]
[1722445366683,0.05198998,66499.0,66498.0,0.150379]
[1722445367491,0.05198998,66499.0,66497.0,0.150382]
[1722445367692,0.29088,66498.0,66497.0,0.014]
[1722445367893,0.59164,66498.0,66497.0,0.014]
[1722445368078,0.150386,66496.0,66492.0,0.150394]
[1722445368439,0.150387,66495.0,66491.0,0.150396]
[1722445368553,0.15039,66494.0,66490.0,0.150396]
[1722445368760,0.150388,66495.0,66491.0,0.150395]
[1722445368954,0.150388,66495.0,66488.0,0.37557012]
[1722445368955,0.150383,66497.0,66490.0,0.269796]
[1722445369158,0.1519402,66496.0,66492.0,0.164393]
[1722445369959,0.0015542,66496.0,66492.0,0.014]
[1722445370137,0.0015542,66498.0,66495.0,0.07476412]
[1722445370360,0.227472,66502.0,66497.0,0.150382]
[1722445370559,0.227472,66502.0,66494.0,0.150389]
[1722445370560,0.150378,66499.0,66494.0,0.150389]
[1722445370742,0.00149777,66501.0,66492.0,0.014]
[1722445370917,0.150391,66493.0,66491.0,0.014]
[1722445371118,0.0771,66502.0,66491.0,0.014]
[1722445371119,0.0150391,66492.0,66491.0,0.014]
[1722445371322,0.0947391,66492.0,66486.0,0.300815]
[1722445371528,0.150398,66490.0,66486.0,0.150406]
[1722445371843,0.2451341,66492.0,66488.0,0.150402]
[1722445372099,0.04608111,66491.0,66488.0,0.300804]
[1722445372300,0.145,66498.0,66491.0,0.07476412]
[1722445372500,0.02359961,66492.0,66491.0,0.23915912]
[1722445372672,0.02359961,66492.0,66491.0,0.92574312]
[1722445373749,0.02359961,66492.0,66491.0,0.91174312]
[1722445374371,0.02359961,66492.0,66491.0,0.92574312]
[1722445374755,0.02359961,66492.0,66491.0,0.93974312]
[1722445374953,0.02359961,66492.0,66491.0,0.87774312]
[1722445375875,0.000849,66499.0,66495.0,0.150385]
[1722445376156,0.150376,66500.0,66495.0,0.150385]
[1722445376367,0.0897707,66499.0,66496.0,0.150384]
[1722445376792,0.0897707,66499.0,66497.0,0.01008771]
[1722445377216,0.00083,66501.0,66497.0,0.01008771]
[1722445377415,0.00083,66501.0,66498.0,0.150378]
[1722445377538,0.00083,66501.0,66499.0,0.150377]
[1722445377760,0.00083,66501.0,66500.0,0.01007139]
[1722445378522,0.00083,66501.0,66498.0,0.009]
[1722445378726,0.0905966,66501.0,66499.0,0.008]
[1722445378872,0.0905966,66501.0,66499.0,0.01807683]
[1722445379067,0.26456852,66501.0,66499.0,0.01807683]
[1722445379580,0.150375,66500.0,66499.0,0.01807683]
[1722445379785,0.21487565,66500.0,66499.0,0.01807683]
[1722445380012,0.06450065,66500.0,66499.0,0.01007683]
[1722445380391,0.21487565,66500.0,66499.0,0.01007683]
[1722445380597,0.65562665,66500.0,66499.0,0.01007683]
[1722445380800,0.65562665,66500.0,66499.0,0.009]
[1722445380801,0.95637765,66500.0,66499.0,0.009]
[1722445382300,0.95637765,66500.0,66499.0,0.019]
[1722445382301,0.591126,66500.0,66499.0,0.019]
[1722445382862,0.591126,66500.0,66499.0,0.01]
[1722445383220,0.891877,66500.0,66499.0,0.01]
[1722445383456,0.300762,66498.0,66492.0,0.150393]
[1722445383659,0.150386,66496.0,66492.0,0.150393]
[1722445383865,0.53252443,66500.0,66499.0,0.002]
[1722445383866,0.891877,66500.0,66499.0,0.002]
[1722445384067,0.891877,66500.0,66499.0,0.004]
[1722445384237,0.14,66500.0,66493.0,0.150391]
[1722445384470,0.150381,66498.0,66494.0,0.150389]
[1722445384670,0.00145274,66497.0,66494.0,0.16049303]
[1722445384839,0.30222074,66497.0,66494.0,0.01010403]
[1722445385045,0.150387,66495.0,66494.0,0.01010403]
[1722445385263,0.150385,66496.0,66492.0,0.150392]
[1722445385464,0.300758,66499.0,66494.0,0.01010403]
[1722445385649,0.150385,66496.0,66493.0,0.01410947]
[1722445385850,0.150385,66496.0,66495.0,0.01009859]
[1722445386053,0.150385,66496.0,66494.0,0.01010403]
[1722445386250,0.150385,66496.0,66495.0,0.01009859]
[1722445386625,0.150385,66496.0,66493.0,0.004]
[1722445386829,0.151385,66496.0,66495.0,0.01009859]
[1722445387056,0.452154,66496.0,66495.0,0.01009859]
[1722445387259,0.150388,66495.0,66491.0,0.151309]
[1722445387679,0.150388,66495.0,66494.0,0.008]
[1722445387859,0.15124879,66495.0,66494.0,0.008]
[1722445388061,0.150388,66495.0,66494.0,0.01010437]
[1722445388202,0.150388,66495.0,66491.0,0.151309]
[1722445388203,0.23966558,66495.0,66491.0,0.151309]
[1722445388447,0.23966558,66495.0,66494.0,0.01010437]
[1722445388448,0.61643858,66495.0,66494.0,0.01010437]
[1722445388644,0.150394,66492.0,66491.0,0.010913]
[1722445388914,0.517282,66492.0,66491.0,0.010913]
[1722445389107,0.517282,66492.0,66491.0,0.02103526]
[1722445389535,0.81807,66492.0,66491.0,0.010913]
[1722445389746,1.208265,66492.0,66491.0,0.010913]
[1722445389945,1.30786494,66492.0,66491.0,0.000913]
[1722445390428,1.00707694,66492.0,66491.0,0.000913]
[1722445390723,1.30786494,66492.0,66491.0,0.000913]
[1722445391140,1.284265,66492.0,66491.0,0.000913]
[1722445391363,0.983477,66492.0,66491.0,0.000913]
[1722445391490,0.984477,66492.0,66491.0,0.026913]
[1722445391891,0.89507,66492.0,66491.0,0.026913]
[1722445392081,0.594282,66492.0,66491.0,0.026913]
[1722445392283,0.528182,66492.0,66491.0,0.026913]
[1722445392486,0.528182,66492.0,66491.0,0.03708724]
[1722445392702,0.82897,66492.0,66491.0,0.03708724]
[1722445393097,0.6183851,66492.0,66491.0,0.026913]
[1722445393840,0.1672031,66492.0,66491.0,0.026913]
[1722445394040,0.001,66492.0,66491.0,0.026913]
[1722445394244,0.001,66492.0,66491.0,0.778893]
[1722445394595,0.02460139,66492.0,66491.0,0.78905808]
[1722445394824,0.001,66492.0,66491.0,0.95245808]
[1722445395553,0.001,66492.0,66491.0,1.25325008]
[1722445396353,0.001,66492.0,66491.0,0.95245808]
[1722445396780,0.001,66492.0,66491.0,0.57436608]
[1722445396935,0.001,66492.0,66491.0,0.48826608]
[1722445397884,0.001,66492.0,66491.0,0.78905808]
[1722445398021,0.02459929,66492.0,66491.0,0.48826608]
[1722445398418,0.02459929,66492.0,66491.0,0.78905808]
[1722445398419,0.001,66492.0,66491.0,0.78905808]
[1722445398644,0.001,66492.0,66491.0,0.81205808]
[1722445399475,0.001,66492.0,66491.0,1.11285008]
[1722445399634,0.001,66492.0,66491.0,0.81205808]
[1722445399842,0.001,66492.0,66491.0,1.11285008]
[1722445400525,0.001,66492.0,66491.0,0.81205808]
[1722445401051,0.001,66492.0,66491.0,1.17355008]
[1722445401754,0.0245985,66492.0,66491.0,1.17355008]
[1722445401993,0.001,66492.0,66491.0,1.17355008]
[1722445403312,0.001,66492.0,66491.0,1.4002018]
[1722445408321,0.00183,66492.0,66491.0,1.4002018]
[1722445408521,0.00183,66492.0,66491.0,1.0994098]
[1722445409089,0.00183,66492.0,66491.0,0.81205808]
[1722445409287,0.152224,66492.0,66491.0,0.03707808]
[1722445409488,0.50645767,66492.0,66491.0,0.03707808]
[1722445409690,0.78364782,66492.0,66491.0,0.026913]
[1722445409947,0.18207182,66492.0,66491.0,0.026913]
[1722445410102,0.00183,66492.0,66491.0,0.026913]
[1722445410301,0.00183,66492.0,66491.0,0.778893]
[1722445410689,0.00183,66492.0,66491.0,0.48819934]
[1722445410888,0.00183,66492.0,66491.0,0.51119934]
[1722445411148,0.00183,66492.0,66491.0,1.11278334]
[1722445411644,0.00183,66492.0,66491.0,0.81199134]
[1722445412673,0.02542846,66492.0,66491.0,0.81199134]
[1722445413035,0.02542846,66492.0,66491.0,0.21040734]
[1722445413236,0.02542846,66492.0,66491.0,0.81199134]
[1722445415978,0.02542846,66492.0,66491.0,1.41003506]
[1722445416397,0.02542846,66492.0,66491.0,1.74082706]
[1722445416596,0.02542846,66492.0,66491.0,2.26664459]
[1722445416982,0.00183,66492.0,66491.0,2.26664459]
[1722445417511,0.00183,66492.0,66491.0,2.25364459]
[1722445417716,0.00183,66492.0,66491.0,2.26964459]
[1722445417899,0.00083,66501.0,66500.0,1.716479]
[1722445418049,0.00083,66501.0,66500.0,1.88903072]
[1722445418230,0.00083,66501.0,66500.0,1.89907527]
[1722445419050,0.00083,66501.0,66500.0,2.15007802]
[1722445419481,0.00083,66501.0,66500.0,2.45082902]
[1722445419729,0.00083,66501.0,66500.0,2.17007802]
[1722445419903,0.00083,66501.0,66500.0,2.15607802]
[1722445420138,0.0756,66527.0,66509.0,0.012]
[1722445420340,0.0756,66527.0,66522.0,0.75163]
[1722445420744,0.0756,66527.0,66522.0,0.76151781]
[1722445421688,0.0604,66534.0,66522.0,1.06216981]
[1722445421885,0.0604,66534.0,66522.0,1.09316981]
[1722445422129,0.0756,66535.0,66522.0,1.09316981]
[1722445422282,0.0756,66535.0,66522.0,1.54337353]
[1722445422687,0.02358808,66523.0,66522.0,1.54337353]
[1722445423101,0.02358808,66523.0,66522.0,1.55237353]
[1722445424151,0.00083,66538.0,66522.0,1.40204753]
[1722445424363,0.00083,66538.0,66537.0,0.450876]
[1722445424566,0.00083,66538.0,66537.0,0.75146]
[1722445424972,0.00083,66538.0,66537.0,0.450876]
[1722445425555,0.00083,66538.0,66537.0,0.451876]
[1722445425758,0.15112,66538.0,66537.0,0.001]
[1722445425960,0.5976,66538.0,66537.0,0.001]
[1722445426238,0.62118557,66538.0,66537.0,0.002]
[1722445426479,0.92176557,66538.0,66537.0,0.002]
[1722445427502,1.34457883,66538.0,66537.0,0.002]
[1722445427963,1.32099326,66538.0,66537.0,0.002]
[1722445428199,1.19876,66538.0,66537.0,0.002]
[1722445428650,0.5976,66538.0,66537.0,0.002]
[1722445429512,0.89818,66538.0,66537.0,0.002]
[1722445429728,0.5976,66538.0,66537.0,0.002]
[1722445430940,0.62118608,66538.0,66537.0,0.002]
[1722445431142,0.150297,66535.0,66530.0,0.12872092]
[1722445431366,0.49116174,66538.0,66531.0,0.150305]
[1722445431613,0.49116174,66538.0,66529.0,0.30062]
[1722445431614,0.150292,66537.0,66529.0,0.30062]
[1722445431742,0.150292,66537.0,66533.0,0.150301]
[1722445432345,0.08083,66538.0,66532.0,0.300604]
[1722445432542,0.08083,66538.0,66534.0,0.150298]
[1722445432960,0.08083,66538.0,66535.0,0.150296]
[1722445433174,0.08083,66538.0,66535.0,0.150295]
[1722445433387,0.08083,66538.0,66535.0,0.150296]
[1722445433581,0.08083,66538.0,66534.0,0.150298]
[1722445434443,0.08083,66538.0,66533.0,0.301599]
[1722445434444,0.001,66537.0,66533.0,0.301599]
[1722445434643,0.001,66537.0,66534.0,0.150298]
[1722445434847,0.1403083,66538.0,66534.0,0.150299]
[1722445435222,0.150293,66537.0,66534.0,0.002]
[1722445435449,0.05931743,66536.0,66534.0,0.002]
[1722445435653,0.05931743,66536.0,66534.0,0.001]
[1722445435654,0.515589,66535.0,66534.0,0.001]
[1722445435854,0.598489,66535.0,66534.0,0.002]
[1722445435981,0.70095897,66535.0,66534.0,0.002]
[1722445436574,0.70095897,66535.0,66534.0,0.001]
[1722445436790,0.70095897,66535.0,66526.0,0.300633]
[1722445436791,0.55266297,66535.0,66526.0,0.300633]
[1722445436991,0.150303,66532.0,66528.0,0.150311]
[1722445437277,0.30061,66532.0,66525.0,0.300637]
[1722445437467,0.150319,66526.0,66524.0,0.4715]
[1722445437782,0.227219,66525.0,66524.0,0.4715]
[1722445437952,0.588457,66525.0,66524.0,0.4715]
[1722445438275,0.287819,66525.0,66524.0,0.4715]
[1722445438687,0.1375,66525.0,66524.0,0.4715]
[1722445438887,0.588457,66525.0,66524.0,0.4785]
[1722445439128,0.61204633,66525.0,66524.0,0.4785]
[1722445439335,0.16108933,66525.0,66524.0,0.4785]
[1722445439547,0.31140833,66525.0,66524.0,0.4785]
[1722445439714,0.31140833,66525.0,66524.0,0.4835]
[1722445439930,0.31140833,66525.0,66524.0,0.012]
[1722445440512,0.10048933,66525.0,66524.0,0.162321]
[1722445440712,0.10048933,66525.0,66524.0,0.012]
[1722445440917,0.55144633,66525.0,66524.0,0.012]
[1722445441115,0.64327346,66525.0,66524.0,0.012]
[1722445441439,0.34263546,66525.0,66524.0,0.012]
[1722445441848,0.25080833,66525.0,66524.0,0.012]
[1722445442052,0.02358933,66525.0,66524.0,0.012]
[1722445442260,0.02358933,66525.0,66524.0,0.462964]
[1722445442479,0.02358933,66525.0,66524.0,0.763607]
[1722445442664,0.02358933,66525.0,66524.0,0.848807]
[1722445443012,0.3006,66534.0,66527.0,0.300627]
[1722445443213,0.150303,66532.0,66528.0,0.150312]
[1722445443429,0.1518552,66533.0,66529.0,0.15031]
[1722445443832,0.0015542,66533.0,66532.0,0.150303]
[1722445444039,0.0015542,66534.0,66532.0,0.150303]
[1722445444245,0.0015542,66534.0,66528.0,0.300621]
[1722445444444,0.0015542,66534.0,66531.0,0.150305]
[1722445444649,0.0015542,66534.0,66530.0,0.300615]
[1722445444650,0.0015542,66534.0,66532.0,0.300606]
[1722445444859,0.0025542,66534.0,66533.0,0.149301]
[1722445445064,0.0025542,66534.0,66533.0,0.449903]
[1722445445065,0.001,66534.0,66533.0,0.449903]
[1722445445264,0.0756,66535.0,66533.0,0.449903]
[1722445445436,0.0025542,66534.0,66533.0,0.300602]
[1722445445616,0.0025542,66534.0,66533.0,0.450903]
[1722445445617,0.0035542,66534.0,66533.0,0.450903]
[1722445445777,0.002,66534.0,66533.0,0.450903]
[1722445445993,0.02458597,66534.0,66533.0,0.150301]
[1722445446399,0.02458597,66534.0,66533.0,0.450903]
[1722445446898,0.02458597,66534.0,66533.0,0.150301]
[1722445447112,0.02458597,66534.0,66531.0,0.30061]
[1722445447113,0.04241199,66534.0,66524.0,0.0852]
[1722445447328,0.0612,66530.0,66527.0,0.150314]
[1722445447451,0.211509,66530.0,66527.0,0.150314]
[1722445447656,0.30062,66529.0,66521.0,0.4715]
[1722445447854,0.30062,66529.0,66505.0,0.300725]
[1722445447855,0.300625,66528.0,66519.0,0.300663]
[1722445448055,0.150317,66526.0,66519.0,0.300663]
[1722445448258,0.0361825,66527.0,66520.0,0.300661]
[1722445448613,0.0361825,66527.0,66522.0,0.300651]
[1722445448816,0.0361825,66527.0,66521.0,0.300656]
[1722445449017,0.150317,66526.0,66522.0,0.150325]
[1722445449209,0.08489455,66525.0,66522.0,0.150325]
[1722445449439,0.08489455,66525.0,66519.0,0.004]
[1722445449639,0.08489455,66525.0,66515.0,0.065]
[1722445449640,0.0817,66524.0,66521.0,0.150326]
[1722445450211,0.0817,66524.0,66518.0,0.300668]
[1722445450212,0.0817,66524.0,66520.0,0.300657]
[1722445450388,0.1121825,66527.0,66521.0,0.300656]
[1722445450594,0.076,66527.0,66521.0,0.300656]
[1722445450861,0.076,66527.0,66524.0,0.300643]
[1722445451039,0.076,66527.0,66525.0,0.150319]
[1722445451040,0.02358903,66526.0,66525.0,0.150319]
[1722445451345,0.02358903,66526.0,66524.0,0.300643]
[1722445451346,0.076,66527.0,66524.0,0.150321]
[1722445451545,0.13496782,66527.0,66524.0,0.150321]
[1722445451699,0.13496782,66527.0,66525.0,0.150319]
[1722445451945,0.13496782,66527.0,66525.0,0.150318]
[1722445452188,0.13496782,66527.0,66525.0,0.154318]
[1722445452516,0.13496782,66527.0,66525.0,0.160318]
[1722445452647,0.13496782,66527.0,66525.0,0.156318]
[1722445452861,0.13496782,66527.0,66525.0,0.006]
[1722445453261,0.13496782,66527.0,66525.0,0.156319]
[1722445453491,0.06470958,66526.0,66525.0,0.156319]
[1722445453864,0.06470958,66526.0,66525.0,0.006]
[1722445454066,0.150319,66525.0,66524.0,0.003]
[1722445454269,0.450957,66525.0,66524.0,0.003]
[1722445454535,0.47454656,66525.0,66524.0,0.003]
[1722445454706,0.02358956,66525.0,66516.0,0.00300648]
[1722445454920,0.226315,66527.0,66525.0,0.004]
[1722445455113,0.226316,66527.0,66525.0,0.004]
[1722445455343,0.226315,66527.0,66525.0,0.004]
[1722445455554,0.076,66527.0,66525.0,0.004]
[1722445455722,0.076,66527.0,66524.0,0.150321]
[1722445456156,0.300603,66533.0,66524.0,0.150321]
[1722445456157,0.0791,66535.0,66526.0,0.07476412]
[1722445456356,0.229397,66535.0,66530.0,0.150307]
[1722445456507,0.04546589,66534.0,66529.0,0.30062]
[1722445456719,0.0015542,66533.0,66529.0,0.150309]
[1722445457135,0.0015542,66533.0,66528.0,0.300624]
[1722445457350,0.0015542,66533.0,66531.0,0.150304]
[1722445457571,0.03729571,66533.0,66532.0,0.150303]
[1722445457937,0.02358706,66533.0,66528.0,0.300624]
[1722445458213,0.02358706,66533.0,66530.0,0.150307]
[1722445458414,0.0015542,66532.0,66531.0,0.150305]
[1722445458828,0.0015542,66532.0,66526.0,0.300633]
[1722445459025,0.0015542,66532.0,66528.0,0.300623]
[1722445459185,0.0015542,66532.0,66530.0,0.150307]
[1722445459384,0.0015542,66532.0,66531.0,0.450916]
[1722445459385,0.06367663,66532.0,66531.0,0.450916]
[1722445459576,0.02458706,66533.0,66532.0,0.45091]
[1722445460406,0.02358706,66533.0,66532.0,0.45091]
[1722445460838,0.02358706,66533.0,66532.0,0.44991]
[1722445461773,0.02358706,66533.0,66532.0,0.149303]
[1722445461774,0.02458706,66533.0,66532.0,0.149303]
[1722445461999,0.04231339,66533.0,66529.0,0.300619]
[1722445462219,0.04231339,66533.0,66527.0,0.023]
[1722445462220,0.0015542,66532.0,66527.0,0.023]
[1722445462420,0.293506,66531.0,66527.0,0.150313]
[1722445462760,0.150308,66530.0,66525.0,0.300635]
[1722445462967,0.293506,66531.0,66527.0,0.150314]
[1722445463382,0.1432,66531.0,66528.0,0.150312]
[1722445463813,0.38548983,66531.0,66527.0,0.150314]
[1722445465358,0.23518383,66531.0,66528.0,0.150311]
[1722445465551,0.17418383,66531.0,66528.0,0.150311]
[1722445465818,0.32448983,66531.0,66527.0,0.150314]
[1722445466022,0.07134321,66530.0,66527.0,0.150314]
[1722445466215,0.07134321,66530.0,66524.0,0.300641]
[1722445466548,0.07134321,66530.0,66527.0,0.150314]
[1722445466945,0.22165121,66530.0,66526.0,0.150316]
[1722445467137,0.06060044,66529.0,66526.0,0.150316]
[1722445468021,0.21091144,66529.0,66525.0,0.150318]
[1722445468376,0.06060044,66529.0,66526.0,0.151316]
[1722445468512,0.21091144,66529.0,66525.0,0.150319]
[1722445468713,0.21697479,66528.0,66523.0,0.150322]
[1722445468916,0.21697479,66528.0,66518.0,0.0756]
[1722445468917,0.150314,66527.0,66526.0,0.002]
[1722445469117,0.589344,66527.0,66526.0,0.002]
[1722445469328,0.889974,66527.0,66526.0,0.002]
[1722445469539,1.190604,66527.0,66526.0,0.002]
[1722445469750,1.21419346,66527.0,66526.0,0.002]
[1722445469975,1.36367476,66527.0,66526.0,0.002]
[1722445470203,1.3400853,66527.0,66526.0,0.002]
[1722445470447,1.3400853,66527.0,66526.0,0.003]
[1722445470649,1.3400853,66527.0,66526.0,0.002]
[1722445470853,0.150344,66514.0,66510.0,0.150352]
[1722445471058,0.1538698,66513.0,66509.0,0.150355]
[1722445471229,0.1538698,66513.0,66510.0,0.16019399]
[1722445471434,0.1538698,66513.0,66510.0,0.00984199]
[1722445471662,0.1538698,66513.0,66507.0,0.300718]
[1722445471663,0.150349,66512.0,66507.0,0.300718]
[1722445471839,0.21742858,66512.0,66510.0,0.00984199]
[1722445472053,0.06707958,66512.0,66510.0,0.18319399]
[1722445472260,0.06707958,66512.0,66511.0,0.150351]
[1722445472696,0.0751698,66513.0,66512.0,0.150348]
[1722445473021,0.0767,66524.0,66510.0,0.14690687]
[1722445473160,0.227022,66524.0,66515.0,0.300684]
[1722445473344,0.10403673,66523.0,66518.0,0.150334]
[1722445473546,0.10403673,66523.0,66515.0,0.300684]
[1722445473547,0.25436073,66523.0,66515.0,0.300684]
[1722445473745,0.02359126,66522.0,66518.0,0.00983954]
[1722445473951,0.0767,66529.0,66524.0,0.150319]
[1722445474157,0.0767,66529.0,66526.0,0.150316]
[1722445474353,0.0767,66529.0,66522.0,0.0621]
[1722445474555,0.22701,66529.0,66519.0,0.00300633]
[1722445474760,0.0767,66529.0,66519.0,0.00300633]
[1722445474971,0.0767,66529.0,66528.0,0.150312]
[1722445474972,0.15511467,66529.0,66528.0,0.150312]
[1722445475177,0.301411,66538.0,66521.0,0.081]
[1722445475178,0.0824,66534.0,66521.0,0.081]
[1722445475381,0.00996231,66538.0,66537.0,0.450876]
[1722445475382,0.00083,66538.0,66537.0,0.450876]
[1722445475579,0.00083,66538.0,66537.0,0.81156]
[1722445475783,0.00083,66538.0,66537.0,0.52109555]